fUSD/lending_fUSD_20240222
["ID","MTS","AMOUNT","RATE_DAILY","PERIOD"]
[314825281,1708571457124,-572.15883328,0.00035616,2]
[314825282,1708571457134,-500.0,0.00035616,2]
[314825283,1708571457143,-500.0,0.00035616,2]
[314825284,1708571457152,-500.0,0.00035616,2]
[314825285,1708571457161,-544.10048637,0.00035616,2]
[314825286,1708571457171,-509.44095397,0.00035616,10]
[314825287,1708571457180,-1548.09,0.00035616,2]
[314825288,1708571457189,-500.0,0.00035616,2]
[314825289,1708571457198,-11555.49,0.00035616,2]
[314825290,1708571457208,-500.0,0.00035616,2]
[314825291,1708571457217,-500.0,0.00035616,2]
[314825292,1708571457226,-500.0,0.00035616,2]
[314825293,1708571457236,-500.0,0.00035616,2]
[314825294,1708571457245,-741.7,0.00035616,2]
[314825295,1708571457254,-500.0,0.00035616,2]
[314825296,1708571457263,-500.0,0.00035616,2]
[314825297,1708571457272,-500.0,0.00035616,2]
[314825298,1708571457282,-8528.54,0.00035616,2]
[314825299,1708571457291,-500.0,0.00035616,2]
[314825300,1708571457300,-500.0,0.00035616,2]
[314825301,1708571457308,-500.0,0.00035616,2]
[314825302,1708571457318,-500.0,0.00035616,2]
[314825303,1708571457327,-500.0,0.00035616,2]
[314825304,1708571457336,-500.0,0.00035616,2]
[314825305,1708571457345,-623.36,0.00035616,2]
[314825306,1708571457354,-500.0,0.00035616,2]
[314825307,1708571457364,-1233.94,0.00035616,2]
[314825308,1708571457373,-500.0,0.00035616,2]
[314825309,1708571457383,-500.0,0.00035616,2]
[314825310,1708571457392,-901.81,0.00035616,2]
[314825311,1708571457401,-508.14427686,0.00035616,2]
[314825312,1708571457410,-500.0,0.00035616,2]
[314825313,1708571457419,-500.0,0.00035616,2]
[314825314,1708571457429,-500.0,0.00035616,2]
[314825315,1708571457438,-5100.61,0.00035616,2]
[314825316,1708571457448,-500.0,0.00035616,2]
[314825317,1708571457457,-1113.67,0.00035616,2]
[314825318,1708571457466,-500.0,0.00035616,2]
[314825319,1708571457476,-2803.13,0.00035616,2]
[314825320,1708571457485,-1443.2,0.00035616,2]
[314825321,1708571457495,-500.0,0.00035616,2]
[314825322,1708571457504,-500.0,0.00035616,2]
[314825323,1708571457514,-536.19,0.00035616,2]
[314825324,1708571457523,-500.0,0.00035616,2]
[314825325,1708571457532,-500.0,0.00035616,2]
[314825326,1708571457541,-1202.93,0.00035616,2]
[314825327,1708571457551,-500.0,0.00035616,2]
[314825328,1708571457560,-2348.06,0.00035616,2]
[314825329,1708571457569,-500.0,0.00035616,2]
[314825330,1708571457578,-737.87,0.00035616,2]
[314825331,1708571457786,-8907.39,0.00035616,2]
[314825332,1708571457796,-500.0,0.00035616,2]
[314825333,1708571457805,-500.0,0.00035616,2]
[314825334,1708571457815,-4960.05,0.00035616,2]
[314825335,1708571457824,-500.0,0.00035616,2]
[314825336,1708571457833,-500.0,0.00035616,2]
[314825337,1708571457842,-510.08165614,0.00035616,2]
[314825338,1708571457851,-2953.86,0.00035616,2]
[314825339,1708571457860,-500.0,0.00035616,2]
[314825340,1708571457870,-1954.58,0.00035616,2]
[314825341,1708571457879,-500.0,0.00035616,2]
[314825342,1708571457888,-500.0,0.00035616,2]
[314825343,1708571457898,-500.0,0.00035616,2]
[314825344,1708571457907,-500.0,0.00035616,2]
[314825345,1708571457916,-500.0,0.00035616,2]
[314825346,1708571457925,-500.0,0.00035616,2]
[314825347,1708571457934,-500.0,0.00035616,2]
[314825348,1708571457943,-500.0,0.00035616,2]
[314825349,1708571457953,-500.0,0.00035616,2]
[314825350,1708571457962,-500.0,0.00035616,2]
[314825351,1708571457971,-1835.44,0.00035616,2]
[314825352,1708571457981,-16345.74,0.00035616,2]
[314825353,1708571457990,-616.52,0.00035616,2]
[314825354,1708571458000,-1157.87,0.00035616,2]
[314825355,1708571458010,-500.0,0.00035616,2]
[314825356,1708571458019,-500.0,0.00035616,2]
[314825357,1708571458029,-500.0,0.00035616,2]
[314825358,1708571458038,-500.0,0.00035616,2]
[314825359,1708571458048,-500.0,0.00035616,2]
[314825360,1708571458057,-500.0,0.00035616,2]
[314825361,1708571458066,-500.0,0.00035616,2]
[314825362,1708571458075,-500.0,0.00035616,2]
[314825363,1708571458084,-500.0,0.00035616,2]
[314825364,1708571458094,-500.0,0.00035616,2]
[314825365,1708571458103,-47824.21,0.00035616,2]
[314825366,1708571458112,-500.0,0.00035616,2]
[314825367,1708571458122,-923.19,0.00035616,2]
[314825368,1708571458131,-1182.15,0.00035616,2]
[314825369,1708571458140,-3063.33,0.00035616,2]
[314825370,1708571458149,-500.0,0.00035616,2]
[314825371,1708571458158,-500.0,0.00035616,2]
[314825372,1708571458167,-500.0,0.00035616,2]
[314825373,1708571458177,-11866.0,0.00035616,2]
[314825374,1708571458186,-500.0,0.00035616,2]
[314825375,1708571458196,-713.96,0.00035616,2]
[314825376,1708571458205,-500.0,0.00035616,2]
[314825377,1708571458214,-500.0,0.00035616,2]
[314825378,1708571458223,-500.0,0.00035616,2]
[314825379,1708571458233,-517.9,0.00035616,2]
[314825380,1708571458243,-500.0,0.00035616,2]
[314825381,1708571458252,-500.0,0.00035616,2]
[314825382,1708571458262,-500.0,0.00035616,2]
[314825383,1708571458271,-500.0,0.00035616,2]
[314825384,1708571458281,-2026.69,0.00035616,2]
[314825385,1708571458290,-500.0,0.00035616,2]
[314825386,1708571458299,-500.0,0.00035616,2]
[314825387,1708571458308,-500.0,0.00035616,2]
[314825388,1708571458317,-956.78,0.00035616,2]
[314825389,1708571458327,-500.0,0.00035616,2]
[314825390,1708571458336,-500.0,0.00035616,2]
[314825391,1708571458346,-500.0,0.00035616,2]
[314825392,1708571458370,-500.0,0.00035616,2]
[314825393,1708571458379,-500.0,0.00035616,2]
[314825394,1708571458388,-16637.24,0.00035616,2]
[314825395,1708571458398,-500.0,0.00035616,2]
[314825396,1708571458407,-801.22,0.00035616,2]
[314825397,1708571458416,-500.0,0.00035616,2]
[314825398,1708571458425,-500.0,0.00035616,2]
[314825399,1708571458434,-500.0,0.00035616,2]
[314825400,1708571458443,-785.21,0.00035616,2]
[314825401,1708571458453,-500.0,0.00035616,2]
[314825402,1708571458462,-500.0,0.00035616,2]
[314825403,1708571458472,-500.0,0.00035616,2]
[314825404,1708571458481,-501.67,0.00035616,2]
[314825405,1708571458491,-617.16,0.00035616,2]
[314825406,1708571458500,-682.86,0.00035616,2]
[314825407,1708571458510,-500.0,0.00035616,2]
[314825408,1708571458520,-809.53,0.00035616,2]
[314825409,1708571458529,-500.0,0.00035616,2]
[314825410,1708571458539,-967.04,0.00035616,2]
[314825411,1708571458548,-500.0,0.00035616,2]
[314825412,1708571458557,-1271.42,0.00035616,2]
[314825413,1708571458568,-500.0,0.00035616,2]
[314825414,1708571458577,-510.19147109,0.00035616,2]
[314825415,1708571458586,-624.82,0.00035616,2]
[314825416,1708571458596,-508.45838022,0.00035616,2]
[314825417,1708571458606,-500.0,0.00035616,2]
[314825418,1708571458619,-503.06850829,0.00035616,2]
[314825419,1708571458628,-500.0,0.00035616,2]
[314825420,1708571458637,-500.0,0.00035616,2]
[314825421,1708571458647,-2805.24,0.00035616,2]
[314825422,1708571458657,-500.0,0.00035616,2]
[314825423,1708571458667,-500.0,0.00035616,2]
[314825424,1708571458676,-500.0,0.00035616,2]
[314825425,1708571458688,-500.0,0.00035616,2]
[314825426,1708571458697,-774.63,0.00035616,2]
[314825427,1708571458707,-500.0,0.00035616,2]
[314825428,1708571458716,-500.0,0.00035616,2]
[314825429,1708571458725,-500.0,0.00035616,2]
[314825430,1708571458735,-500.0,0.00035616,2]
[314825431,1708571458745,-3102.16,0.00035616,2]
[314825432,1708571458754,-524.46,0.00035616,2]
[314825433,1708571458764,-500.0,0.00035616,2]
[314825434,1708571458774,-500.0,0.00035616,2]
[314825435,1708571458783,-500.0,0.00035616,2]
[314825436,1708571458792,-11105.96,0.00035616,2]
[314825437,1708571458801,-500.0,0.00035616,2]
[314825438,1708571458811,-500.0,0.00035616,2]
[314825439,1708571458820,-500.0,0.00035616,2]
[314825440,1708571458829,-2885.03,0.00035616,2]
[314825441,1708571458839,-500.0,0.00035616,2]
[314825442,1708571458848,-500.0,0.00035616,2]
[314825443,1708571458858,-500.0,0.00035616,2]
[314825444,1708571458867,-500.0,0.00035616,2]
[314825445,1708571458876,-4523.22,0.00035616,2]
[314825446,1708571458885,-1384.58,0.00035616,2]
[314825447,1708571458895,-500.0,0.00035616,2]
[314825448,1708571458905,-564.24,0.00035616,2]
[314825449,1708571458914,-500.0,0.00035616,2]
[314825450,1708571458923,-3000.0,0.00035616,2]
[314825451,1708571458933,-1558.04,0.00035616,2]
[314825452,1708571458942,-503.10622702,0.00035616,2]
[314825453,1708571458952,-1576.19,0.00035616,2]
[314825454,1708571458961,-4721.11,0.00035616,2]
[314825455,1708571458970,-500.0,0.00035616,2]
[314825456,1708571458980,-500.0,0.00035616,2]
[314825457,1708571458989,-5798.22,0.00035616,2]
[314825458,1708571458998,-500.0,0.00035616,2]
[314825459,1708571459008,-500.0,0.00035616,2]
[314825460,1708571459019,-232.86510669,0.00035616,2]
[314825461,1708571459028,-500.0,0.00035616,2]
[314825462,1708571459038,-2471.6,0.00035616,2]
[314825463,1708571459047,-500.0,0.00035616,2]
[314825464,1708571459056,-500.0,0.00035616,2]
[314825465,1708571459066,-502.78,0.00035616,2]
[314825466,1708571459075,-500.0,0.00035616,2]
[314825467,1708571459084,-706.81,0.00035616,2]
[314825468,1708571459093,-504.24307689,0.00035616,2]
[314825469,1708571459102,-500.0,0.00035616,2]
[314825470,1708571459112,-500.0,0.00035616,2]
[314825471,1708571459121,-500.0,0.00035616,2]
[314825472,1708571459130,-500.0,0.00035616,2]
[314825473,1708571459140,-500.0,0.00035616,2]
[314825474,1708571459149,-500.0,0.00035616,2]
[314825475,1708571459157,-22854.05,0.00035616,2]
[314825476,1708571459166,-500.0,0.00035616,2]
[314825477,1708571459175,-500.0,0.00035616,2]
[314825478,1708571459184,-500.0,0.00035616,2]
[314825479,1708571459193,-1839.11,0.00035616,2]
[314825480,1708571459202,-664.12,0.00035616,2]
[314825481,1708571459211,-500.0,0.00035616,2]
[314825482,1708571459221,-1851.23,0.00035616,2]
[314825483,1708571459229,-500.0,0.00035616,2]
[314825484,1708571459239,-500.0,0.00035616,2]
[314825485,1708571459247,-500.0,0.00035616,2]
[314825486,1708571459256,-500.0,0.00035616,2]
[314825487,1708571459266,-500.0,0.00035616,2]
[314825488,1708571459275,-500.0,0.00035616,2]
[314825489,1708571459284,-500.0,0.00035616,2]
[314825490,1708571459293,-500.0,0.00035616,2]
[314825491,1708571459302,-500.0,0.00035616,2]
[314825492,1708571459312,-500.0,0.00035616,2]
[314825493,1708571459321,-500.0,0.00035616,2]
[314825494,1708571459331,-2117.58,0.00035616,2]
[314825495,1708571459340,-500.0,0.00035616,2]
[314825496,1708571459349,-1256.1,0.00035616,2]
[314825497,1708571459359,-500.0,0.00035616,2]
[314825498,1708571459369,-500.0,0.00035616,2]
[314825499,1708571459378,-500.0,0.00035616,2]
[314825500,1708571459388,-500.0,0.00035616,2]
[314825501,1708571459397,-3618.29,0.00035616,2]
[314825502,1708571459407,-500.0,0.00035616,2]
[314825503,1708571459416,-500.0,0.00035616,2]
[314825504,1708571459425,-500.0,0.00035616,2]
[314825505,1708571459435,-500.0,0.00035616,2]
[314825506,1708571459445,-500.0,0.00035616,2]
[314825507,1708571459454,-3081.23,0.00035616,2]
[314825508,1708571459463,-955.99,0.00035616,2]
[314825509,1708571459473,-500.0,0.00035616,2]
[314825510,1708571459482,-500.0,0.00035616,2]
[314825511,1708571459492,-500.0,0.00035616,2]
[314825512,1708571459502,-500.0,0.00035616,2]
[314825513,1708571459512,-500.0,0.00035616,2]
[314825514,1708571459522,-336.82788722,0.00035616,2]
[314825515,1708571459533,-1239.0,0.00035616,2]
[314825516,1708571459542,-500.0,0.00035616,2]
[314825517,1708571459552,-500.0,0.00035616,2]
[314825518,1708571459562,-500.0,0.00035616,2]
[314825519,1708571459572,-500.0,0.00035616,2]
[314825520,1708571459581,-615.41,0.00035616,2]
[314825521,1708571459591,-2103.9,0.00035616,2]
[314825522,1708571459601,-500.0,0.00035616,2]
[314825523,1708571459615,-500.0,0.00035616,2]
[314825524,1708571459624,-500.0,0.00035616,2]
[314825525,1708571459633,-664.12,0.00035616,2]
[314825526,1708571459643,-645.28,0.00035616,2]
[314825527,1708571459653,-500.0,0.00035616,2]
[314825528,1708571459662,-835.19,0.00035616,2]
[314825529,1708571459671,-500.0,0.00035616,2]
[314825530,1708571459682,-500.0,0.00035616,2]
[314825531,1708571459692,-7561.17,0.00035616,2]
[314825532,1708571459701,-500.0,0.00035616,2]
[314825533,1708571459710,-733.12,0.00035616,2]
[314825534,1708571459719,-15542.27,0.00035616,2]
[314825535,1708571459729,-1190.36,0.00035616,2]
[314825536,1708571459738,-500.0,0.00035616,2]
[314825537,1708571459748,-500.0,0.00035616,2]
[314825538,1708571459757,-500.0,0.00035616,2]
[314825539,1708571459767,-500.0,0.00035616,2]
[314825540,1708571459776,-503.47321877,0.00035616,2]
[314825541,1708571459786,-765.37,0.00035616,2]
[314825542,1708571459795,-2606.07,0.00035616,2]
[314825543,1708571459805,-1764.0,0.00035616,2]
[314825544,1708571459814,-500.0,0.00035616,2]
[314825545,1708571459823,-500.0,0.00035616,2]
[314825546,1708571459832,-500.0,0.00035616,2]
[314825547,1708571459842,-500.0,0.00035616,2]
[314825548,1708571459852,-500.0,0.00035616,2]
[314825549,1708571459862,-500.0,0.00035616,2]
[314825550,1708571459871,-509.46,0.00035616,2]
[314825551,1708571459881,-663.24,0.00035616,2]
[314825552,1708571459890,-502.07534894,0.00035616,2]
[314825553,1708571459900,-500.0,0.00035616,2]
[314825554,1708571459909,-685.55,0.00035616,2]
[314825555,1708571459918,-2864.15,0.00035616,2]
[314825556,1708571459927,-500.0,0.00035616,2]
[314825557,1708571459937,-500.0,0.00035616,2]
[314825558,1708571459946,-843.54,0.00035616,2]
[314825559,1708571459956,-283.49598534,0.00035616,2]
[314825560,1708571459965,-500.0,0.00035616,2]
[314825561,1708571459974,-766.2,0.00035616,2]
[314825562,1708571459983,-500.0,0.00035616,2]
[314825563,1708571459992,-500.0,0.00035616,2]
[314825564,1708571460001,-500.0,0.00035616,2]
[314825565,1708571460011,-500.0,0.00035616,2]
[314825566,1708571460020,-500.0,0.00035616,2]
[314825567,1708571460029,-1751.61,0.00035616,2]
[314825568,1708571460039,-509.23,0.00035616,2]
[314825569,1708571460048,-14314.79,0.00035616,2]
[314825570,1708571460058,-5176.95,0.00035616,2]
[314825571,1708571460067,-1234.77,0.00035616,2]
[314825572,1708571460077,-1775.26,0.00035616,2]
[314825573,1708571460087,-501.08829304,0.00035616,2]
[314825574,1708571460096,-500.0,0.00035616,2]
[314825575,1708571460105,-1756.06,0.00035616,2]
[314825576,1708571460114,-500.0,0.00035616,2]
[314825577,1708571460123,-500.0,0.00035616,2]
[314825578,1708571460132,-500.0,0.00035616,2]
[314825579,1708571460141,-2325.19,0.00035616,2]
[314825580,1708571460151,-500.0,0.00035616,2]
[314825581,1708571460160,-500.0,0.00035616,2]
[314825582,1708571460169,-500.0,0.00035616,2]
[314825583,1708571460178,-542.82,0.00035616,2]
[314825584,1708571460188,-500.0,0.00035616,2]
[314825585,1708571460197,-500.0,0.00035616,2]
[314825586,1708571460206,-500.0,0.00035616,2]
[314825587,1708571460216,-1579.35,0.00035616,2]
[314825588,1708571460225,-828.99,0.00035616,2]
[314825589,1708571460234,-500.0,0.00035616,2]
[314825590,1708571460244,-500.0,0.00035616,2]
[314825591,1708571460253,-500.0,0.00035616,2]
[314825592,1708571460263,-500.0,0.00035616,2]
[314825593,1708571460272,-500.0,0.00035616,2]
[314825594,1708571460282,-1054.4,0.00035616,2]
[314825595,1708571460291,-500.0,0.00035616,2]
[314825596,1708571460301,-500.0,0.00035616,2]
[314825597,1708571460310,-922.11,0.00035616,2]
[314825598,1708571460319,-1005.63,0.00035616,2]
[314825599,1708571460328,-821.91,0.00035616,2]
[314825600,1708571460338,-1849.16,0.00035616,2]
[314825601,1708571460347,-500.0,0.00035616,2]
[314825602,1708571460356,-500.0,0.00035616,2]
[314825603,1708571460365,-2652.91,0.00035616,2]
[314825604,1708571460375,-500.0,0.00035616,2]
[314825605,1708571460384,-7491.62,0.00035616,2]
[314825606,1708571460394,-2036.86396766,0.00035616,2]
[314825607,1708571460403,-513.91674693,0.00035616,2]
[314825608,1708571460412,-1020.58,0.00035616,2]
[314825609,1708571460422,-500.0,0.00035616,2]
[314825610,1708571460431,-500.0,0.00035616,2]
[314825611,1708571460441,-500.0,0.00035616,2]
[314825612,1708571460450,-549.8380393,0.00035616,2]
[314825613,1708571460460,-500.0,0.00035616,2]
[314825614,1708571460469,-500.0,0.00035616,2]
[314825615,1708571460479,-1517.94,0.00035616,2]
[314825616,1708571460677,-550.39092327,0.00035616,2]
[314825617,1708571460689,-500.0,0.00035616,2]
[314825618,1708571460698,-500.0,0.00035616,2]
[314825619,1708571460707,-1118.62392656,0.00035616,30]
[314825620,1708571460717,-500.0,0.00035616,2]
[314825621,1708571460726,-3446.09,0.00035616,2]
[314825622,1708571460735,-981.24,0.00035616,2]
[314825623,1708571460744,-500.0,0.00035616,2]
[314825624,1708571460753,-776.63,0.00035616,2]
[314825625,1708571460763,-500.0,0.00035616,2]
[314825626,1708571460772,-500.0,0.00035616,2]
[314825627,1708571460782,-1416.3,0.00035616,2]
[314825628,1708571460791,-1668.28,0.00035616,2]
[314825629,1708571460801,-500.0,0.00035616,2]
[314825630,1708571460810,-500.0,0.00035616,2]
[314825631,1708571460819,-500.0,0.00035616,2]
[314825632,1708571460829,-500.0,0.00035616,2]
[314825633,1708571460838,-3401.61,0.00035616,2]
[314825634,1708571460847,-572.5297433,0.00035616,2]
[314825635,1708571460857,-1239.99,0.00035616,2]
[314825636,1708571460867,-1173.97,0.00035616,2]
[314825637,1708571460876,-1753.88,0.00035616,2]
[314825638,1708571460886,-500.0,0.00035616,2]
[314825639,1708571460895,-293.92516821,0.00035616,2]
[314825640,1708571460904,-500.0,0.00035616,2]
[314825641,1708571460913,-826.06,0.00035616,2]
[314825642,1708571460922,-500.0,0.00035616,2]
[314825643,1708571460931,-500.0,0.00035616,2]
[314825644,1708571460940,-500.0,0.00035616,2]
[314825645,1708571460950,-500.0,0.00035616,2]
[314825646,1708571460959,-500.0,0.00035616,2]
[314825647,1708571460969,-213.73532612,0.00035616,2]
[314825648,1708571460978,-502.13894178,0.00035616,2]
[314825649,1708571460987,-500.0,0.00035616,2]
[314825650,1708571460997,-500.0,0.00035616,2]
[314825651,1708571461006,-500.0,0.00035616,2]
[314825652,1708571461017,-526.6,0.00035616,2]
[314825653,1708571461026,-500.0,0.00035616,2]
[314825654,1708571461035,-500.0,0.00035616,2]
[314825655,1708571461045,-1732.09,0.00035616,2]
[314825656,1708571461054,-1490.35,0.00035616,2]
[314825657,1708571461063,-500.0,0.00035616,2]
[314825658,1708571461072,-8719.42,0.00035616,2]
[314825659,1708571461082,-970.8,0.00035616,2]
[314825660,1708571461092,-500.0,0.00035616,2]
[314825661,1708571461101,-1041.15,0.00035616,2]
[314825662,1708571461110,-612.06,0.00035616,2]
[314825663,1708571461120,-500.0,0.00035616,2]
[314825664,1708571461129,-500.0,0.00035616,2]
[314825665,1708571461138,-500.0,0.00035616,2]
[314825666,1708571461147,-500.0,0.00035616,2]
[314825667,1708571461156,-500.0,0.00035616,2]
[314825668,1708571461166,-8404.87,0.00035616,2]
[314825669,1708571461175,-500.0,0.00035616,2]
[314825670,1708571461184,-500.0,0.00035616,2]
[314825671,1708571461194,-678.34,0.00035616,2]
[314825672,1708571461203,-500.0,0.00035616,2]
[314825673,1708571461212,-1474.18,0.00035616,2]
[314825674,1708571461221,-500.0,0.00035616,2]
[314825675,1708571461231,-500.0,0.00035616,2]
[314825676,1708571461240,-556.36,0.00035616,2]
[314825677,1708571461249,-2000.0,0.00035616,2]
[314825678,1708571461258,-500.0,0.00035616,2]
[314825679,1708571461270,-500.0,0.00035616,2]
[314825680,1708571461280,-1970.11,0.00035616,2]
[314825681,1708571461289,-926.78,0.00035616,2]
[314825682,1708571461299,-500.0,0.00035616,2]
[314825683,1708571461309,-500.0,0.00035616,2]
[314825684,1708571461319,-500.0,0.00035616,2]
[314825685,1708571461329,-981.32,0.00035616,2]
[314825686,1708571461339,-502.7582442,0.00035616,2]
[314825687,1708571461349,-620.07,0.00035616,2]
[314825688,1708571461359,-500.0,0.00035616,2]
[314825689,1708571461368,-500.0,0.00035616,2]
[314825690,1708571461379,-803.46,0.00035616,2]
[314825691,1708571461388,-500.0,0.00035616,2]
[314825692,1708571461398,-20932.1,0.00035616,2]
[314825693,1708571461407,-3642.13,0.00035616,2]
[314825694,1708571461417,-200.0,0.00035616,2]
[314825695,1708571461427,-500.0,0.00035616,2]
[314825696,1708571461437,-961.82,0.00035616,2]
[314825697,1708571461447,-1831.45,0.00035616,2]
[314825698,1708571461457,-500.0,0.00035616,2]
[314825700,1708571461467,-500.0,0.00035616,2]
[314825701,1708571461477,-500.0,0.00035616,2]
[314825702,1708571461486,-500.0,0.00035616,2]
[314825703,1708571461496,-528.91,0.00035616,2]
[314825704,1708571461505,-500.0,0.00035616,2]
[314825705,1708571461518,-500.0,0.00035616,2]
[314825706,1708571461528,-500.0,0.00035616,2]
[314825707,1708571461538,-911.87,0.00035616,2]
[314825708,1708571461547,-500.0,0.00035616,2]
[314825709,1708571461557,-1431.54,0.00035616,2]
[314825710,1708571461566,-1653.07,0.00035616,2]
[314825711,1708571461577,-505.32385687,0.00035616,2]
[314825712,1708571461587,-500.0,0.00035616,2]
[314825713,1708571461596,-2034.08,0.00035616,2]
[314825714,1708571461606,-601.79,0.00035616,2]
[314825715,1708571461618,-500.0,0.00035616,2]
[314825716,1708571461628,-500.0,0.00035616,2]
[314825717,1708571461637,-1513.56,0.00035616,2]
[314825718,1708571461647,-500.0,0.00035616,2]
[314825719,1708571461657,-500.0,0.00035616,2]
[314825720,1708571461667,-500.0,0.00035616,2]
[314825721,1708571461677,-959.25,0.00035616,2]
[314825722,1708571461691,-500.0,0.00035616,2]
[314825723,1708571461701,-500.0,0.00035616,2]
[314825724,1708571461711,-500.0,0.00035616,2]
[314825725,1708571461720,-500.0,0.00035616,2]
[314825726,1708571461730,-534.98565317,0.00035616,2]
[314825727,1708571461739,-500.0,0.00035616,2]
[314825728,1708571461749,-1348.49,0.00035616,2]
[314825729,1708571461759,-1014.28,0.00035616,2]
[314825730,1708571461772,-500.0,0.00035616,2]
[314825731,1708571461781,-960.38,0.00035616,2]
[314825732,1708571461790,-500.0,0.00035616,2]
[314825733,1708571461799,-500.0,0.00035616,2]
[314825734,1708571461809,-500.0,0.00035616,2]
[314825735,1708571461819,-500.0,0.00035616,2]
[314825736,1708571461829,-500.0,0.00035616,2]
[314825737,1708571461838,-654.8,0.00035616,2]
[314825738,1708571461847,-500.0,0.00035616,2]
[314825739,1708571461856,-1129.13,0.00035616,2]
[314825740,1708571461865,-531.32,0.00035616,2]
[314825741,1708571461874,-500.0,0.00035616,2]
[314825742,1708571461883,-690.97,0.00035616,2]
[314825743,1708571461892,-538.3,0.00035616,2]
[314825744,1708571461902,-500.0,0.00035616,2]
[314825745,1708571461911,-881.41,0.00035616,2]
[314825746,1708571461920,-500.0,0.00035616,2]
[314825747,1708571461934,-774.91,0.00035616,2]
[314825748,1708571461956,-6164.58,0.00035616,2]
[314825749,1708571461973,-500.0,0.00035616,2]
[314825750,1708571461994,-500.0,0.00035616,2]
[314825751,1708571462013,-1435.52,0.00035616,2]
[314825752,1708571462030,-500.0,0.00035616,2]
[314825753,1708571462047,-3036.4,0.00035616,2]
[314825754,1708571462064,-4067.05,0.00035616,2]
[314825755,1708571462085,-500.0,0.00035616,2]
[314825756,1708571462101,-500.0,0.00035616,2]
[314825757,1708571462120,-570.75,0.00035616,2]
[314825758,1708571462142,-846.04,0.00035616,2]
[314825759,1708571462157,-500.0,0.00035616,2]
[314825760,1708571462172,-500.0,0.00035616,2]
[314825761,1708571462191,-500.0,0.00035616,2]
[314825762,1708571462205,-500.0,0.00035616,2]
[314825763,1708571462220,-503.44409828,0.00035616,2]
[314825764,1708571462235,-500.0,0.00035616,2]
[314825765,1708571462249,-546.83,0.00035616,2]
[314825766,1708571462264,-572.05209813,0.00035616,2]
[314825767,1708571462279,-500.0,0.00035616,2]
[314825768,1708571462294,-1703.61,0.00035616,2]
[314825769,1708571462309,-500.0,0.00035616,2]
[314825770,1708571462324,-500.0,0.00035616,2]
[314825771,1708571462339,-432.83983988,0.00035616,2]
[314825772,1708571462354,-960.14,0.00035616,2]
[314825773,1708571462370,-349.80670226,0.00035616,2]
[314825774,1708571462385,-155.69,0.00035616,2]
[314825775,1708571462401,-886.38,0.00035616,10]
[314825776,1708571462417,-3762.7503091,0.00035623,2]
[314825777,1708571462433,-4103.9674776,0.00035623,2]
[314825778,1708571462448,-241661.67138,0.00035623,2]
[314825779,1708571462463,-34362.2009444,0.00035623,2]
[314825780,1708571462480,-500.0,0.00035647,2]
[314825781,1708571462494,-500.0,0.00035647,2]